bitfinex-derivatives/quotes_ETHF0:USTF0_20250816
["timestamp","ask_amount","ask_price","bid_price","bid_amount"]
[1755347984490,0.11960235,4402.7,4402.6,1.4988]
[1755347984693,0.29050235,4402.7,4402.6,1.4988]
[1755347984899,0.11960235,4402.7,4402.6,1.4988]
[1755347985695,0.80840235,4402.7,4402.6,1.4988]
[1755347985891,1.34686038,4402.7,4402.6,1.4988]
[1755347986104,1.45986038,4402.7,4401.9,44.2626]
[1755347986294,1.0626,4402.1,4402.0,1.4988]
[1755347986495,1.2272,4402.1,4402.0,1.4988]
[1755347986696,1.45991449,4402.1,4402.0,1.4988]
[1755347986896,1.45991449,4402.1,4401.4,3.2078]
[1755347986897,0.9664,4401.5,4401.4,4.0622]
[1755347987097,0.82273212,4401.5,4400.8,0.2548]
[1755347987303,0.4254,4400.9,4400.8,0.8544]
[1755347987502,0.7992,4400.9,4400.8,1.2315]
[1755347987808,1.0626,4400.9,4400.8,0.8544]
[1755347988103,1.46001083,4400.9,4400.8,1.4988]
[1755347988296,1.46001083,4400.9,4400.8,0.689]
[1755347988496,1.46001083,4400.9,4400.8,0.4217]
[1755347988805,1.2399,4400.2,4400.1,4.71]
[1755347988996,3.2078,4400.9,4400.2,0.6361]
[1755347989200,3.2078,4400.9,4400.8,1.5022]
[1755347989398,0.1194958,4400.9,4400.8,1.5022]
[1755347989604,3.2078,4401.7,4401.6,0.6007]
[1755347989808,3.53676853,4401.7,4401.6,1.5022]
[1755347989999,4.60006853,4401.7,4401.6,1.5022]
[1755347990198,4.89026853,4401.7,4401.6,0.8469]
[1755347990400,4.89026853,4401.7,4401.6,1.1123]
[1755347990606,4.89026853,4401.7,4401.6,1.5022]
[1755347990807,0.11944673,4401.7,4401.6,1.5022]
[1755347991007,0.55664673,4401.7,4401.6,1.5022]
[1755347991300,1.18274673,4401.7,4400.9,0.9015]
[1755347991508,1.18274673,4401.6,4401.5,1.5022]
[1755347991811,1.47294673,4401.6,4401.5,0.5929]
[1755347992103,1.68254435,4401.6,4401.5,0.5929]
[1755347992308,1.68254435,4401.6,4401.5,0.8469]
[1755347992496,1.68254435,4401.6,4401.5,1.5022]
[1755347992700,1.68254435,4401.6,4401.1,0.2462]
[1755347992904,0.4372,4401.1,4401.0,0.6007]
[1755347993106,1.18274673,4401.1,4401.0,0.6007]
[1755347993504,1.47294673,4401.1,4401.0,1.5022]
[1755347993902,1.47294673,4401.1,4399.8,0.45425]
[1755347993903,0.4372,4400.5,4400.4,0.8469]
[1755347994212,1.2399,4400.5,4400.4,1.5022]
[1755347994401,0.4372,4400.5,4400.4,1.5022]
[1755347994606,1.2399,4401.0,4400.9,1.256]
[1755347994805,0.55674639,4401.0,4400.9,1.5022]
[1755347995208,0.92094639,4401.0,4400.9,1.5022]
[1755347996305,1.35944639,4401.0,4400.9,1.5022]
[1755347996506,1.35944639,4401.0,4400.2,3.2078]
[1755347996507,0.7397,4400.9,4400.3,0.9015]
[1755347996708,1.47304639,4400.8,4400.7,1.5022]
[1755347997913,0.55674639,4400.8,4400.7,1.5022]
[1755347998515,0.92094639,4400.8,4400.7,1.5022]
[1755347998713,1.18284639,4400.8,4400.7,1.5022]
[1755347998914,1.35944639,4400.8,4400.2,3.2078]
[1755347999214,0.8014,4400.4,4400.3,1.5022]
[1755347999418,0.11954639,4400.4,4400.3,1.5022]
[1755347999612,0.73335954,4400.9,4400.8,0.1756]
[1755347999916,1.56856225,4400.9,4400.8,1.5022]
[1755348000111,1.68216225,4400.9,4400.8,0.8469]
[1755348000410,1.56856225,4400.9,4400.8,1.5022]
[1755348000614,0.76586225,4400.9,4400.8,1.5022]
[1755348000815,0.32866225,4400.9,4400.8,1.5022]
[1755348001018,1.05606225,4400.9,4400.3,0.2462]
[1755348001219,0.6261,4400.7,4400.3,0.9015]
[1755348001413,0.4372,4400.4,4400.3,1.5022]
[1755348001622,0.55675953,4400.4,4400.3,1.5022]
[1755348001810,0.11955953,4400.4,4400.3,1.5022]
[1755348002118,0.11955953,4400.4,4400.3,0.6007]
[1755348002514,1.3535,4400.9,4400.8,0.8469]
[1755348002719,1.68219992,4400.9,4400.8,0.8469]
[1755348003716,0.11957396,4400.9,4400.8,1.5022]
[1755348004117,3.2078,4401.4,4400.9,0.9015]
[1755348004317,3.2078,4401.4,4401.3,1.5022]
[1755348004519,3.32733857,4401.4,4401.3,1.5022]
[1755348004920,0.11953857,4401.4,4401.3,1.5022]
[1755348006816,0.11953857,4401.4,4401.3,4.71]
[1755348007026,0.978,4401.9,4401.8,0.6007]
[1755348007321,1.47301024,4401.9,4401.8,1.1123]
[1755348007521,1.47301024,4401.9,4401.8,1.5022]
[1755348007816,0.29421024,4401.9,4401.8,1.5022]
[1755348008022,0.92091024,4401.9,4401.8,1.5022]
[1755348009118,36.59796483,4401.9,4400.3,3.2078]
[1755348009325,36.59796483,4401.9,4398.9,2.01489071]
[1755348009326,1.3535,4399.8,4399.5,0.2462]
[1755348009526,1.3535,4399.6,4399.5,0.2462]
[1755348009723,1.47302568,4399.6,4399.5,0.4218]
[1755348009922,1.70941111,4399.6,4399.5,1.1123]
[1755348011022,1.70941111,4399.6,4399.5,0.8469]
[1755348011222,0.6261,4398.7,4398.6,0.2462]
[1755348011421,0.7397,4398.7,4398.6,0.2462]
[1755348012122,0.3642,4399.7,4398.7,0.6553]
[1755348012319,0.1194251,4399.6,4399.1,0.6553]
[1755348012626,3.2078,4399.9,4399.1,0.9015]
[1755348012826,3.2078,4399.9,4399.2,0.9015]
[1755348013026,3.2078,4399.9,4399.3,0.9015]
[1755348013226,3.2078,4399.9,4399.2,0.45432]
[1755348013426,3.2078,4399.9,4399.3,0.9015]
[1755348013628,3.2078,4399.9,4399.0,3.2078]
[1755348013819,3.2078,4399.9,4399.5,0.6553]
[1755348014026,0.7397,4399.7,4399.1,0.2462]
[1755348014223,0.7397,4399.5,4399.1,0.2462]
[1755348014420,0.7397,4399.3,4399.1,0.2462]
[1755348014622,0.7397,4399.8,4399.1,0.2462]
[1755348014920,0.1136,4399.5,4398.8,0.6553]
[1755348015119,0.35540765,4399.4,4398.8,0.3899]
[1755348015320,3.2078,4399.9,4399.3,0.2462]
[1755348015521,3.2078,4399.9,4399.3,3.2078]
[1755348015722,3.2078,4399.9,4399.4,0.9015]
[1755348015928,3.2078,4399.9,4399.3,3.2078]
[1755348016128,3.2078,4399.9,4399.4,0.9015]
[1755348016327,0.2619,4400.7,4399.8,3.2078]
[1755348016524,3.2078,4401.1,4400.4,0.6361]
[1755348016724,0.2619,4401.6,4400.9,3.2078]
[1755348017032,0.6261,4401.4,4400.9,3.2078]
[1755348017228,0.3642,4401.0,4400.2,0.2462]
[1755348017426,0.7397,4400.8,4400.2,0.2462]
[1755348017632,0.7397,4400.6,4400.2,0.2462]
[1755348017832,0.7397,4400.6,4399.7,61.94]
[1755348017833,0.6261,4400.4,4399.7,61.94]
[1755348018130,0.6261,4400.4,4399.8,0.9015]
[1755348018328,0.6261,4400.4,4399.9,0.2654]
[1755348018529,0.6261,4400.4,4400.0,0.6277]
[1755348018831,0.6261,4400.4,4400.3,0.5119]
[1755348019029,0.74550552,4400.4,4400.3,0.8944]
[1755348019529,0.75497576,4400.4,4400.3,0.8944]
[1755348019922,0.75497576,4400.4,4399.7,40.8]
[1755348020118,0.17984589,4402.9,4399.8,0.8944]
[1755348020119,0.38375536,4400.1,4399.8,0.8944]
[1755348020326,0.12887576,4400.0,4399.9,0.8944]
[1755348021132,0.2449,4400.7,4400.0,0.8944]
[1755348021432,0.35142304,4400.6,4399.6,3.2078]
[1755348021631,0.59632304,4400.5,4400.3,0.8944]
[1755348021821,0.12890107,4400.4,4399.6,3.66207]
[1755348022023,0.12890107,4400.4,4400.1,3.2078]
[1755348022230,0.39,4400.3,4400.1,3.2078]
[1755348022427,0.12890107,4400.2,4400.1,3.8355]
[1755348022628,0.76380107,4400.2,4400.1,3.2078]
[1755348022835,1.09966413,4400.2,4400.1,3.2078]
[1755348023035,1.09966413,4400.2,4399.4,0.8944]
[1755348023331,0.1133,4400.0,4399.4,0.5119]
[1755348023633,0.12890107,4399.9,4399.5,0.2667]
[1755348023828,0.7482,4399.6,4399.5,0.2667]
[1755348024031,0.87710107,4399.6,4399.5,0.2667]
[1755348024528,0.87710107,4399.6,4399.1,0.2452]
[1755348024835,0.12890107,4399.5,4399.2,0.2667]
[1755348025032,0.6349,4399.2,4399.1,0.2667]
[1755348025233,0.12890107,4399.2,4399.1,0.8944]
[1755348025628,0.1133,4399.5,4399.2,0.8944]
[1755348025826,0.6349,4399.3,4399.2,0.2452]
[1755348026027,0.3582,4399.2,4399.0,0.2452]
[1755348026233,0.7482,4399.1,4398.9,3.5903]
[1755348026428,0.1133,4399.1,4398.9,3.5903]
[1755348026633,0.72,4399.1,4399.0,0.3229]
[1755348027034,0.4365,4399.1,4398.9,3.2078]
[1755348027234,1.2416,4399.4,4399.3,1.464]
[1755348027438,0.7482,4399.3,4399.0,0.8944]
[1755348027636,1.0714,4399.1,4399.0,1.464]
[1755348027826,1.0714,4399.1,4398.7,21.17]
[1755348028032,1.0714,4399.1,4399.0,1.2188]
[1755348028233,0.6349,4399.0,4398.4,0.2667]
[1755348028435,0.4365,4398.5,4398.4,0.8363]
[1755348028730,1.0714,4398.5,4398.4,1.464]
[1755348028930,1.2416,4398.5,4398.4,1.464]
[1755348029533,0.6349,4398.4,4397.7,0.2667]
[1755348029729,0.6067,4397.8,4397.6,3.2078]
[1755348029927,0.7482,4397.6,4396.8,3.2078]
[1755348030132,0.9967,4397.4,4397.3,0.162]
[1755348030441,1.37056608,4397.4,4397.3,1.0815]
[1755348030932,1.37056608,4397.4,4397.3,1.464]
[1755348031327,1.48386608,4397.4,4397.3,0.2667]
[1755348031629,0.4365,4397.1,4397.0,0.9195]
[1755348031828,1.0714,4397.1,4397.0,1.464]
[1755348032031,0.8265,4397.1,4397.0,1.464]
[1755348032232,0.4365,4397.1,4396.9,0.2667]
[1755348032434,1.3549,4397.0,4396.9,0.5119]
[1755348032632,1.3549,4397.0,4396.9,0.6728]
[1755348033030,1.3549,4397.0,4396.9,0.8348]
[1755348033239,1.3549,4396.9,4396.8,3.2078]
[1755348033434,1.3549,4396.9,4396.8,4.6718]
[1755348033634,3.2078,4397.6,4396.8,4.6718]
[1755348033635,3.6443,4397.6,4397.5,0.5696]
[1755348033939,4.6913025,4397.6,4397.5,0.8363]
[1755348034141,4.4078025,4397.6,4397.5,1.464]
[1755348034338,2.02364041,4400.8,4397.5,1.464]
[1755348034339,0.39,4398.6,4397.5,0.5696]
[1755348034635,3.2078,4399.0,4398.0,3.2078]
[1755348034840,0.76340021,4398.9,4398.7,0.8944]
[1755348035040,0.6349,4398.9,4398.8,0.8944]
[1755348035241,0.7633872,4398.9,4398.8,0.8944]
[1755348035643,0.8766872,4398.9,4398.8,0.8944]
[1755348036142,0.7482,4398.9,4398.8,0.8944]
[1755348036342,0.87672489,4398.9,4398.8,0.8944]
[1755348036543,0.87672489,4398.9,4398.8,0.5119]
[1755348036840,3.88891233,4401.7,4398.0,24.4048]
[1755348036841,3.2078,4399.7,4398.6,0.8944]
[1755348037034,0.7482,4399.5,4398.7,0.2667]
[1755348037238,0.35532957,4399.4,4398.7,0.2667]
[1755348037438,3.2078,4399.2,4398.3,0.2667]
[1755348037739,0.3582,4398.8,4398.3,0.2667]
[1755348037943,0.2449,4398.6,4398.0,3.453]
[1755348038147,0.3582,4398.3,4398.0,3.2078]
[1755348038338,0.1133,4398.0,4397.2,0.2667]
[1755348038534,0.2449,4398.4,4397.5,0.8944]
[1755348038741,0.35595254,4398.3,4397.5,0.8944]
[1755348038940,3.2078,4398.9,4397.6,3.2078]
[1755348039140,0.2449,4398.5,4397.6,3.2078]
[1755348039342,0.12874655,4398.4,4397.6,3.2078]
[1755348039534,0.51874655,4398.3,4397.7,0.8944]
[1755348039738,0.7482,4397.8,4397.7,0.2667]
[1755348039942,0.7482,4397.7,4397.4,0.2667]
[1755348040240,0.7482,4397.6,4396.9,3.4745]
[1755348040445,0.12876333,4397.5,4397.0,0.8944]
[1755348040648,0.3582,4397.6,4397.1,0.2667]
[1755348040840,0.76366783,4397.5,4397.0,0.8944]
[1755348041041,0.7482,4397.3,4397.1,0.2667]
[1755348041242,0.6349,4397.2,4397.1,0.8944]
[1755348041548,0.7482,4397.2,4397.1,0.2667]
[1755348042042,0.1133,4397.2,4396.9,3.2078]
[1755348042243,0.7482,4397.8,4396.9,3.4745]
[1755348042447,0.35582,4397.7,4396.9,3.2078]
[1755348042743,0.7482,4397.5,4396.9,3.2078]
[1755348043047,0.1133,4397.2,4396.9,3.2078]
[1755348043245,0.7482,4397.0,4396.9,3.2078]
[1755348043841,0.87688963,4397.0,4396.9,3.2078]
[1755348044041,0.87688963,4397.0,4396.5,0.2667]
[1755348044347,0.3582,4396.7,4396.1,0.10236229]
[1755348044547,0.74572616,4396.6,4396.1,0.10236229]
[1755348044743,0.7482,4396.3,4396.1,0.10236229]
[1755348045047,3.2078,4396.4,4396.1,0.10236229]
[1755348045048,1.10392616,4396.2,4396.1,0.10236229]
[1755348045239,0.99062616,4396.2,4396.1,0.10236229]
[1755348045444,1.10392616,4396.2,4396.1,0.10236229]
[1755348047048,4.10392616,4396.2,4395.5,3.2078]
[1755348047243,0.7482,4395.8,4394.7,3.2078]
[1755348047443,0.7482,4395.3,4394.5,0.2667]
[1755348047648,0.7482,4395.3,4394.6,0.3825]
[1755348047649,0.39,4395.1,4394.6,0.3825]
[1755348047848,0.35572616,4395.0,4394.8,0.6277]
[1755348048143,0.7482,4394.9,4394.8,0.2667]
[1755348048848,0.2493,4394.8,4394.5,0.2468]
[1755348049148,0.6422,4394.6,4394.5,0.2468]
[1755348049343,0.3929,4394.6,4394.5,0.8594]
[1755348049748,0.7562,4394.6,4394.1,0.2468]
[1755348049942,3.2078,4395.4,4394.0,3.2078]
[1755348050143,0.7562,4394.5,4394.0,3.2078]
[1755348050343,0.3929,4394.5,4394.4,0.8594]
[1755348050544,0.6422,4394.9,4394.4,0.8594]
[1755348050749,0.6422,4395.2,4394.5,0.2468]
[1755348050952,3.2078,4394.9,4394.0,3.2078]
[1755348051149,0.7562,4394.6,4394.0,3.2078]
[1755348051341,0.114,4394.6,4394.0,3.2078]
[1755348051546,0.3633,4394.4,4394.0,3.4546]
[1755348051747,0.5069,4394.2,4394.1,0.2468]
[1755348052050,0.114,4394.2,4394.1,0.2468]
[1755348052446,3.2078,4394.9,4394.1,0.2468]
[1755348052651,0.99819974,4394.8,4394.2,0.6126]
[1755348052852,0.35599974,4394.7,4394.3,0.2468]
[1755348053052,3.2078,4394.9,4394.0,3.2078]
[1755348053053,3.2078,4394.9,4394.2,0.6174]
[1755348053347,3.2078,4394.9,4394.4,0.3706]
[1755348053547,0.114,4395.1,4393.7,0.45488]
[1755348053548,0.114,4395.6,4394.8,0.8594]
[1755348053743,0.35734698,4395.5,4394.9,0.8594]
[1755348053941,3.2078,4395.7,4395.1,0.4888]
[1755348054142,3.2078,4395.7,4394.7,3.2078]
[1755348054350,0.2277066,4395.6,4394.9,0.6174]
[1755348054546,3.2078,4395.7,4395.0,0.8594]
[1755348054748,0.22770708,4395.6,4395.1,0.2468]
[1755348055050,3.2078,4395.7,4394.8,0.8594]
[1755348055250,0.2277074,4395.6,4394.8,0.8594]
[1755348055549,3.2078,4395.7,4394.8,0.8594]
[1755348055750,0.22776943,4395.6,4394.9,0.8594]
[1755348055948,3.2078,4395.7,4395.1,0.3706]
[1755348056147,0.22776917,4395.6,4394.7,3.2078]
[1755348056344,0.22785058,4395.5,4395.0,0.2468]
[1755348056544,0.22785058,4395.5,4394.8,0.3706]
[1755348056545,0.1138,4395.3,4394.8,0.3706]
[1755348056750,0.49285056,4395.2,4394.6,0.2468]
[1755348056945,0.35764514,4395.1,4394.6,0.2468]
[1755348057143,0.35764514,4395.1,4394.2,3.8204]
[1755348057144,0.756,4394.9,4394.7,0.2468]
[1755348057455,3.2078,4395.2,4394.2,3.66263]
[1755348057753,3.4571,4395.9,4395.0,0.8594]
[1755348057948,0.35770166,4395.8,4395.1,0.8594]
[1755348058150,0.35770166,4395.7,4395.2,0.8594]
[1755348058350,0.34428871,4395.6,4394.9,3.2078]
[1755348058544,0.12976804,4395.5,4394.9,3.2078]
[1755348058751,0.6422,4395.3,4394.9,3.2078]
[1755348058947,0.756,4395.8,4394.4,3.2078]
[1755348059149,0.756,4395.6,4394.5,0.4888]
[1755348059454,0.756,4395.4,4394.5,0.4888]
[1755348059655,0.3443527,4395.3,4394.5,0.4888]
[1755348059854,0.59382952,4395.2,4394.5,0.4888]
[1755348060149,0.1138,4394.6,4394.5,0.2468]
[1755348060348,0.52280503,4394.6,4394.5,0.8594]
[1755348060746,0.77210503,4394.6,4394.5,0.4888]
[1755348060947,0.88590503,4394.6,4394.5,0.2468]
[1755348061145,0.24370503,4394.6,4394.4,3.2078]
[1755348061351,0.5067,4394.8,4394.4,3.5784]
[1755348061547,0.12989234,4394.7,4394.5,0.8594]
[1755348061745,0.12989234,4394.6,4394.5,0.8594]
[1755348061947,3.2078,4395.9,4394.8,0.8594]
[1755348062151,3.2078,4395.9,4395.2,0.6126]
[1755348062152,0.21454375,4395.8,4395.2,0.6126]
[1755348062352,0.2493,4395.3,4394.6,0.2468]
[1755348062656,3.42240722,4395.2,4394.4,0.6126]
[1755348062858,0.756,4395.0,4394.8,0.2468]
[1755348063159,0.1138,4395.0,4394.9,0.2468]
[1755348063555,0.1138,4395.0,4394.9,0.4888]
[1755348063750,0.756,4395.0,4394.9,0.4888]
[1755348063961,0.3929,4395.6,4394.6,3.2078]
[1755348064154,0.3929,4395.6,4394.7,0.8594]
[1755348064155,0.21459301,4395.5,4394.7,0.8594]
[1755348064456,3.2078,4395.9,4394.9,0.8594]
[1755348064661,0.21458616,4395.8,4395.0,0.8594]
[1755348064857,0.21458616,4395.7,4394.8,0.2468]
[1755348065059,0.6422,4395.5,4394.9,0.242]
[1755348065750,0.6422,4395.5,4395.3,0.8594]
[1755348065954,0.6422,4395.5,4395.4,0.8594]
[1755348066157,0.21472306,4395.5,4395.4,0.8594]
[1755348066355,3.2078,4395.9,4394.6,3.66259]
[1755348066559,0.21488077,4395.8,4394.9,0.8594]
[1755348066753,3.2078,4395.9,4395.0,0.8594]
[1755348066961,0.21486482,4395.8,4395.1,0.8594]
[1755348067265,3.2078,4395.9,4394.8,0.8594]
[1755348067460,0.21489885,4395.8,4394.8,0.3706]
[1755348067658,0.21507777,4395.7,4394.8,0.8594]
[1755348067858,3.3216,4395.9,4394.6,3.2078]
[1755348068061,0.85727798,4395.8,4394.8,0.3706]
[1755348068263,0.85727798,4395.8,4394.6,3.2078]
[1755348068264,0.3929,4395.6,4395.0,0.6174]
[1755348068462,0.2152393,4395.5,4395.1,0.8594]
[1755348068658,0.2152393,4395.4,4395.2,0.2468]
[1755348068859,0.3929,4395.5,4395.4,0.2468]
[1755348069065,0.97124677,4395.5,4395.4,0.2468]
[1755348069564,0.97124677,4395.5,4395.4,0.8594]
[1755348070560,0.85744677,4395.5,4395.4,0.8594]
[1755348071064,0.21524677,4395.5,4395.4,0.8594]
[1755348073167,1.40922664,4395.5,4395.4,0.2468]
[1755348073363,1.52302664,4395.5,4395.4,0.2468]
[1755348074062,0.89373146,4395.5,4395.4,1.4706]
[1755348074270,0.34195159,4395.5,4395.4,1.4706]
[1755348076265,1.40725159,4395.5,4395.4,1.4706]
[1755348076469,1.58155159,4395.5,4395.4,1.4706]
[1755348076771,1.69535159,4395.5,4395.4,1.4706]
[1755348077860,1.69535159,4395.5,4394.9,0.2468]
[1755348078068,1.2396,4395.5,4395.4,1.4706]
[1755348078271,1.56743307,4395.5,4395.4,1.4706]
[1755348078764,1.39313307,4395.5,4395.4,1.4706]
[1755348078965,0.75093307,4395.5,4395.4,1.4706]
[1755348079163,1.00363742,4395.5,4395.4,1.4706]
[1755348079368,1.56933742,4395.5,4395.4,1.4706]
[1755348080578,1.68263742,4395.5,4395.4,0.4222]
[1755348080970,1.68263742,4395.5,4395.0,0.6361]
[1755348081273,0.3971,4395.3,4394.7,0.8996]
[1755348081472,1.68173742,4395.2,4395.1,0.6203]
[1755348081775,1.68173742,4395.2,4395.1,1.1323]
[1755348081974,1.68173742,4395.2,4395.1,1.5049]
[1755348082777,0.32783742,4395.2,4395.1,1.5049]
[1755348082976,34.78764041,4397.6,4395.1,1.5049]
[1755348082977,3.2078,4396.8,4395.1,6.2078]
[1755348083275,0.8193,4396.7,4396.6,1.5049]
[1755348083469,1.2406,4396.7,4396.6,1.5049]
[1755348083670,1.3539,4396.7,4396.6,1.1323]
[1755348083975,1.3539,4396.7,4396.6,0.8838]
[1755348084164,1.2406,4396.7,4396.6,1.1323]
[1755348084367,1.2406,4396.7,4396.6,1.5049]
[1755348084564,1.3539,4396.7,4396.6,1.5049]
[1755348084974,1.3539,4396.7,4396.1,0.3726]
[1755348085174,0.4222,4396.2,4396.1,0.9929]
[1755348085373,1.072,4396.2,4396.1,1.5049]
[1755348085571,1.2406,4396.2,4396.1,1.2414]
[1755348085770,1.3539,4396.2,4395.7,0.527]
[1755348085972,0.4222,4395.9,4395.8,0.8838]
[1755348086169,0.4222,4395.9,4395.8,1.5049]
[1755348086373,0.6498,4396.3,4395.8,1.5049]
[1755348086576,0.6498,4396.2,4395.9,0.6361]
[1755348086776,1.072,4396.2,4396.1,1.5049]
[1755348087085,1.3539,4396.2,4396.1,0.6203]
[1755348088079,1.3539,4396.2,4396.1,0.4418]
[1755348088375,0.5908,4395.9,4395.5,3.2078]
[1755348088582,1.3539,4395.7,4395.6,0.2635]
[1755348089075,0.7631,4395.6,4395.5,3.2078]
[1755348089276,0.1133,4395.5,4394.3,2.01489071]
[1755348089467,0.1133,4395.5,4394.0,3.66265]
[1755348089665,0.1133,4395.5,4394.2,0.527]
[1755348089878,0.1133,4395.5,4394.3,0.8996]
[1755348090382,0.1133,4395.5,4394.4,0.8996]
[1755348090573,0.1133,4395.5,4394.0,3.2078]
[1755348090769,3.3764,4395.1,4395.0,0.6053]
[1755348091079,3.4897,4395.1,4395.0,1.1323]
[1755348091373,3.4897,4395.1,4395.0,1.5049]
[1755348091575,3.4897,4395.1,4395.0,1.1323]
[1755348092277,0.1133,4395.0,4394.7,0.2635]
[1755348092477,0.1686,4394.8,4394.7,0.2635]
[1755348092682,0.2819,4394.8,4394.7,0.2635]
[1755348093780,0.1686,4394.8,4393.4,3.2078]
[1755348093973,3.2078,4394.4,4393.4,3.2078]
[1755348094283,3.3764,4394.4,4394.3,1.5049]
[1755348094683,3.2078,4394.4,4394.3,1.5049]
[1755348094883,3.32939246,4394.4,4394.3,1.5049]
[1755348095884,3.49799246,4394.4,4394.3,1.5049]
[1755348096085,3.61129246,4394.4,4394.3,1.5049]
[1755348096584,3.61129246,4394.4,4394.3,0.4418]
[1755348096778,3.61129246,4394.4,4394.3,0.2635]
[1755348096980,3.61129246,4394.4,4393.4,3.2078]
[1755348097284,0.1133,4394.2,4393.6,0.2635]
[1755348097480,0.29019246,4394.1,4394.0,0.4268]
[1755348097679,0.40349246,4394.1,4394.0,1.5049]
[1755348097880,0.40349246,4394.1,4394.0,0.2635]
[1755348098079,0.1133,4394.0,4393.5,0.2635]
[1755348098278,3.32939246,4393.9,4393.8,0.3568]
[1755348098483,3.32939246,4393.9,4393.8,1.5049]
[1755348099782,3.2078,4394.7,4393.9,0.2635]
[1755348099987,0.3971,4394.6,4393.6,0.00572036]
[1755348100280,0.9353,4394.6,4394.5,0.7053]
[1755348100681,0.9353,4394.6,4394.5,0.2635]
[1755348101882,0.9353,4394.3,4394.2,0.2635]
[1755348102279,0.9353,4394.3,4393.6,0.37832036]
[1755348102280,0.9353,4393.7,4393.6,0.00572036]
[1755348102477,3.2078,4393.7,4392.6,0.2635]
[1755348102685,0.5094,4393.0,4392.7,0.2635]
[1755348102881,0.3961,4392.8,4392.6,0.2635]
[1755348103077,3.2078,4393.1,4392.0,0.2635]
[1755348103283,0.3961,4392.5,4391.5,0.6361]
[1755348103586,0.5094,4392.5,4391.4,3.2078]
[1755348103786,3.2078,4392.6,4391.8,0.527]
[1755348104087,3.2078,4392.6,4392.2,0.527]
[1755348104287,3.2078,4392.6,4392.3,0.3726]
[1755348104787,3.2078,4392.6,4392.5,0.8996]
[1755348105482,3.6039,4392.6,4392.5,0.8996]
[1755348105687,3.7172,4392.6,4392.5,0.8996]
[1755348105883,3.6039,4392.6,4392.5,0.8996]
[1755348106082,3.7172,4392.6,4392.5,0.527]
[1755348106687,3.7172,4392.6,4392.5,0.8996]
[1755348107290,3.7172,4392.6,4392.5,0.2635]
[1755348107590,3.7172,4392.6,4392.2,0.2635]
[1755348107591,0.5094,4392.5,4392.2,0.2635]
[1755348107782,3.2078,4392.6,4392.1,0.2635]
[1755348107983,0.5094,4392.5,4392.2,0.2635]
[1755348108183,3.2078,4392.6,4392.2,0.2635]
[1755348108487,0.3961,4392.2,4391.6,0.2635]
[1755348109392,0.3961,4392.2,4391.7,0.2582]
[1755348109686,0.3961,4392.2,4391.5,0.3726]
[1755348109687,0.6573,4391.9,4391.8,0.2484]
[1755348110077,0.6573,4391.9,4391.8,0.6683]
[1755348110490,0.6573,4391.9,4391.8,1.2202]
[1755348111384,0.6573,4391.9,4391.8,0.838]
[1755348111584,0.9252,4391.9,4391.8,0.2484]
[1755348111785,0.9252,4391.9,4391.8,1.0853]
[1755348112088,0.9252,4391.9,4391.8,1.4675]
[1755348112285,0.8111,4391.9,4391.8,1.4675]
[1755348112484,3.5888,4392.1,4392.0,0.5787]
[1755348112689,3.5888,4392.1,4392.0,1.4675]
[1755348112690,3.2078,4392.1,4392.0,1.4675]
[1755348113087,2.9398,4392.1,4392.0,0.8888]
[1755348114586,0.7377,4392.0,4391.7,0.5066]
[1755348114890,0.4951,4391.9,4391.7,0.2582]
[1755348115090,0.2426,4392.0,4391.8,0.2484]
[1755348115290,0.2426,4392.0,4391.8,0.5066]
[1755348115784,0.4951,4391.9,4391.8,0.8888]
[1755348115981,0.4951,4391.9,4390.8,0.8888]
[1755348116181,0.4951,4391.9,4390.7,3.2078]
[1755348116386,0.4951,4391.9,4391.0,0.3822]
[1755348116587,0.4951,4391.9,4391.1,0.3822]
[1755348117089,0.4951,4391.9,4391.3,0.5066]
[1755348117288,2.9398,4392.1,4390.7,3.2078]
[1755348117490,2.9398,4392.1,4391.0,0.8888]
[1755348117692,2.9398,4392.1,4390.7,3.2078]
[1755348117693,0.381,4392.0,4391.1,0.3822]
[1755348117991,0.4951,4391.8,4391.2,0.5066]
[1755348118194,0.7377,4391.5,4391.3,0.5066]
[1755348118392,0.4951,4391.4,4391.3,0.5066]
[1755348119390,0.7377,4391.4,4391.3,0.5066]
[1755348119795,0.4951,4391.4,4391.3,0.5066]
[1755348119992,3.2078,4391.6,4390.7,3.2078]
[1755348120201,3.2078,4391.6,4390.9,0.5066]
[1755348120490,0.4951,4391.5,4390.8,0.8888]
[1755348120788,3.2078,4391.6,4390.8,0.8888]
[1755348120990,3.2078,4391.6,4390.7,3.2078]
[1755348121191,0.11071791,4391.5,4390.9,0.8888]
[1755348121389,3.2078,4391.6,4390.8,0.8888]
[1755348121588,1.20311918,4391.5,4391.4,0.6683]
[1755348121783,1.0924,4391.5,4391.4,0.6683]
[1755348121991,1.203108,4391.5,4391.4,0.6683]
[1755348122189,0.4951,4391.4,4391.2,0.2582]
[1755348122493,1.0924,4391.3,4391.2,1.0853]
[1755348122986,1.0924,4391.3,4390.7,0.2582]
[1755348123186,1.0924,4390.8,4390.7,0.8369]
[1755348123387,1.0924,4390.8,4390.7,1.4675]
[1755348123590,1.0924,4390.8,4390.7,1.0853]
[1755348123792,1.335,4390.8,4390.7,0.2484]
[1755348123986,0.381,4390.7,4390.1,0.6306]
[1755348124191,0.8161,4390.7,4390.6,0.9609]
[1755348124397,0.4351,4390.7,4390.6,1.4675]
[1755348124596,3.2078,4391.1,4391.0,0.5787]
[1755348124898,3.2078,4391.1,4391.0,1.4675]
[1755348124899,3.31852179,4391.1,4391.0,1.4675]
[1755348125093,4.41092179,4391.1,4391.0,1.0853]